[Event "Early-Titled-Tuesday-Blitz-October-17-2023"]
[Site "Chess.com"]
[Date "2023.10.17"]
[Round "2"]
[White "HamedWafa4"]
[Black "Tobias_Koelle"]
[Result "0-1"]
[WhiteElo "2615"]
[BlackElo "2957"]
[TimeControl "180+1"]
[EndTime "8:17:46 PDT"]
[Termination "Tobias_Koelle won by checkmate"]

1. e4 {[%clk 0:03:00.9]} 1... c5 {[%clk 0:02:58.7]} 2. Nf3 {[%clk 0:03:00]} 2...
d6 {[%clk 0:02:55.5]} 3. Bb5+ {[%clk 0:02:58.9]} 3... Nc6 {[%clk 0:02:54.6]} 4.
O-O {[%clk 0:02:48.3]} 4... Bd7 {[%clk 0:02:54.4]} 5. Re1 {[%clk 0:02:47.4]}
5... Nf6 {[%clk 0:02:53.9]} 6. c4 {[%clk 0:02:41.8]} 6... a6 {[%clk 0:02:53.2]}
7. Bxc6 {[%clk 0:02:36.1]} 7... Bxc6 {[%clk 0:02:54.1]} 8. Nc3 {[%clk
0:02:35.8]} 8... e5 {[%clk 0:02:52.6]} 9. d3 {[%clk 0:02:34.7]} 9... Be7 {[%clk
0:02:52.8]} 10. Bg5 {[%clk 0:02:33.9]} 10... O-O {[%clk 0:02:52.6]} 11. Nd2
{[%clk 0:02:33.7]} 11... b5 {[%clk 0:02:51.5]} 12. b3 {[%clk 0:02:32.6]} 12...
b4 {[%clk 0:02:41.7]} 13. Bxf6 {[%clk 0:02:32.2]} 13... Bxf6 {[%clk 0:02:38.9]}
14. Nd5 {[%clk 0:02:32]} 14... Bg5 {[%clk 0:02:39.4]} 15. Nf1 {[%clk 0:02:27.4]}
15... a5 {[%clk 0:02:38.3]} 16. a4 {[%clk 0:02:25]} 16... g6 {[%clk 0:02:36]}
17. Nfe3 {[%clk 0:02:22.3]} 17... Kg7 {[%clk 0:02:34.7]} 18. Rf1 {[%clk
0:02:20.4]} 18... Ra7 {[%clk 0:02:32.8]} 19. g3 {[%clk 0:02:20.3]} 19... f5
{[%clk 0:02:23.5]} 20. h4 {[%clk 0:02:13.5]} 20... Bxe3 {[%clk 0:02:12.6]} 21.
fxe3 {[%clk 0:02:09.7]} 21... Raf7 {[%clk 0:02:12.2]} 22. Qe2 {[%clk 0:01:55.9]}
22... fxe4 {[%clk 0:01:56.4]} 23. dxe4 {[%clk 0:01:52.3]} 23... Bd7 {[%clk
0:01:56.6]} 24. Rxf7+ {[%clk 0:01:50.9]} 24... Rxf7 {[%clk 0:01:57.5]} 25. Rf1
{[%clk 0:01:50.8]} 25... Qf8 {[%clk 0:01:57]} 26. Rxf7+ {[%clk 0:01:23]} 26...
Qxf7 {[%clk 0:01:57.9]} 27. Nb6 {[%clk 0:00:53.4]} 27... Bh3 {[%clk 0:01:49.4]}
28. Qf2 {[%clk 0:00:50]} 28... Bg4 {[%clk 0:01:42.6]} 29. Qg2 {[%clk 0:00:26.9]}
29... Bd1 {[%clk 0:01:31.4]} 30. Qd2 {[%clk 0:00:23.6]} 30... Qf3 {[%clk
0:01:26.1]} 31. Qxd6 {[%clk 0:00:14.9]} 31... Qxg3+ {[%clk 0:01:24.4]} 32. Kf1
{[%clk 0:00:15.6]} 32... Qf3+ {[%clk 0:01:24.1]} 33. Kg1 {[%clk 0:00:15.9]}
33... Qxe3+ {[%clk 0:01:24.1]} 34. Kh2 {[%clk 0:00:15]} 34... Qf2+ {[%clk
0:01:21.7]} 35. Kh3 {[%clk 0:00:14.3]} 35... Bg4+ {[%clk 0:01:20]} 36. Kxg4
{[%clk 0:00:13.4]} 36... Qg2# {[%clk 0:01:20.6]} 0-1

[Event "Early-Titled-Tuesday-Blitz-October-17-2023"]
[Site "Chess.com"]
[Date "2023.10.17"]
[Round "2"]
[White "a-z30"]
[Black "HouseOfDurin"]
[Result "1-0"]
[WhiteElo "2507"]
[BlackElo "2273"]
[TimeControl "180+1"]
[EndTime "8:17:51 PDT"]
[Termination "a-z30 won by checkmate"]

1. d3 {[%clk 0:03:00.9]} 1... c5 {[%clk 0:02:59.3]} 2. Nf3 {[%clk 0:03:01.3]}
2... Nc6 {[%clk 0:03:00]} 3. g3 {[%clk 0:03:02]} 3... g6 {[%clk 0:03:00.4]} 4.
Bg2 {[%clk 0:03:02.7]} 4... Bg7 {[%clk 0:03:01.2]} 5. O-O {[%clk 0:03:03.3]}
5... e5 {[%clk 0:03:01.9]} 6. c4 {[%clk 0:03:03.8]} 6... Nge7 {[%clk 0:03:02.6]}
7. Nc3 {[%clk 0:03:04.2]} 7... O-O {[%clk 0:03:02.3]} 8. Rb1 {[%clk 0:03:04.6]}
8... d6 {[%clk 0:03:02.5]} 9. b3 {[%clk 0:03:05]} 9... h6 {[%clk 0:02:56.3]} 10.
Bb2 {[%clk 0:03:05.1]} 10... Be6 {[%clk 0:02:56.5]} 11. e3 {[%clk 0:03:05.3]}
11... d5 {[%clk 0:02:56.6]} 12. cxd5 {[%clk 0:03:02.3]} 12... Nxd5 {[%clk
0:02:57.5]} 13. Nxd5 {[%clk 0:02:40.9]} 13... Bxd5 {[%clk 0:02:58.4]} 14. a3
{[%clk 0:02:39.9]} 14... Qd7 {[%clk 0:02:52.6]} 15. b4 {[%clk 0:02:38.5]} 15...
cxb4 {[%clk 0:02:46.8]} 16. axb4 {[%clk 0:02:38.1]} 16... a6 {[%clk 0:02:46.8]}
17. Qa4 {[%clk 0:02:08.2]} 17... b5 {[%clk 0:02:45]} 18. Qa1 {[%clk 0:02:06.7]}
18... Rfe8 {[%clk 0:02:28.2]} 19. Rfc1 {[%clk 0:02:04.9]} 19... Nxb4 {[%clk
0:02:00.7]} 20. Bxe5 {[%clk 0:01:54.9]} 20... Bxe5 {[%clk 0:01:38.4]} 21. Nxe5
{[%clk 0:01:51.2]} 21... Qb7 {[%clk 0:01:29.9]} 22. e4 {[%clk 0:01:38.2]} 22...
Nc6 {[%clk 0:01:16.5]} 23. Ng4 {[%clk 0:01:31.8]} 23... Be6 {[%clk 0:00:48.3]}
24. Nf6+ {[%clk 0:01:31.6]} 24... Kf8 {[%clk 0:00:48.4]} 25. d4 {[%clk
0:01:31.3]} 25... Nxd4 {[%clk 0:00:20.3]} 26. Qxd4 {[%clk 0:01:28.6]} 26... Red8
{[%clk 0:00:20.4]} 27. Qb2 {[%clk 0:01:11.5]} 27... Rac8 {[%clk 0:00:19.9]} 28.
e5 {[%clk 0:00:56.5]} 28... Rxc1+ {[%clk 0:00:18.6]} 29. Qxc1 {[%clk 0:00:55]}
29... Qe7 {[%clk 0:00:19.1]} 30. Qxh6# {[%clk 0:00:54]} 1-0

[Event "Early-Titled-Tuesday-Blitz-October-17-2023"]
[Site "Chess.com"]
[Date "2023.10.17"]
[Round "2"]
[White "Beca95"]
[Black "PositionalPanther"]
[Result "1-0"]
[WhiteElo "2919"]
[BlackElo "2610"]
[TimeControl "180+1"]
[EndTime "8:17:59 PDT"]
[Termination "Beca95 won by checkmate"]

1. d4 {[%clk 0:03:00.9]} 1... e6 {[%clk 0:03:00.9]} 2. Nf3 {[%clk 0:03:00.1]}
2... d5 {[%clk 0:02:58.5]} 3. c4 {[%clk 0:03:00.1]} 3... a6 {[%clk 0:02:58.3]}
4. cxd5 {[%clk 0:02:59.2]} 4... exd5 {[%clk 0:02:59.2]} 5. Nc3 {[%clk
0:02:59.3]} 5... h6 {[%clk 0:02:59.8]} 6. Bf4 {[%clk 0:02:57.1]} 6... Nf6 {[%clk
0:03:00]} 7. Qc2 {[%clk 0:02:50.9]} 7... Nc6 {[%clk 0:02:55.2]} 8. e3 {[%clk
0:02:49.8]} 8... Bd6 {[%clk 0:02:54.7]} 9. Bg3 {[%clk 0:02:46.5]} 9... O-O
{[%clk 0:02:50.2]} 10. a3 {[%clk 0:02:46.8]} 10... Bg4 {[%clk 0:02:46.8]} 11.
Bd3 {[%clk 0:02:46.6]} 11... Re8 {[%clk 0:02:40.3]} 12. O-O {[%clk 0:02:45.7]}
12... Bxg3 {[%clk 0:02:37.3]} 13. hxg3 {[%clk 0:02:44.9]} 13... Bxf3 {[%clk
0:02:35.3]} 14. gxf3 {[%clk 0:02:44.5]} 14... Ne7 {[%clk 0:02:32]} 15. b4 {[%clk
0:02:43.8]} 15... c6 {[%clk 0:02:31.9]} 16. Kg2 {[%clk 0:02:44.1]} 16... Nc8
{[%clk 0:02:32.3]} 17. Rh1 {[%clk 0:02:41.7]} 17... Nd6 {[%clk 0:02:32.4]} 18.
Na4 {[%clk 0:02:42.2]} 18... Qe7 {[%clk 0:02:27.1]} 19. Nc5 {[%clk 0:02:39.9]}
19... Nd7 {[%clk 0:02:24.7]} 20. a4 {[%clk 0:02:35]} 20... Nxc5 {[%clk
0:02:21.7]} 21. bxc5 {[%clk 0:02:35.9]} 21... Nc8 {[%clk 0:02:19.3]} 22. Rab1
{[%clk 0:02:35.2]} 22... Qc7 {[%clk 0:02:11.7]} 23. g4 {[%clk 0:02:35.2]} 23...
Ne7 {[%clk 0:02:02.1]} 24. Rh5 {[%clk 0:02:26.9]} 24... f6 {[%clk 0:02:01.4]}
25. f4 {[%clk 0:02:21.8]} 25... Kf7 {[%clk 0:01:57.7]} 26. Qb3 {[%clk
0:02:18.4]} 26... Rab8 {[%clk 0:01:52.3]} 27. Kf3 {[%clk 0:02:17.9]} 27... Ke6
{[%clk 0:01:44.4]} 28. e4 {[%clk 0:02:17.2]} 28... Kd7 {[%clk 0:01:44.2]} 29. e5
{[%clk 0:02:15]} 29... fxe5 {[%clk 0:01:43.1]} 30. Rxe5 {[%clk 0:02:13.9]} 30...
Rf8 {[%clk 0:01:38.5]} 31. Rbe1 {[%clk 0:02:10.9]} 31... Rbe8 {[%clk 0:01:36.1]}
32. Qb6 {[%clk 0:02:05]} 32... Qxb6 {[%clk 0:01:32.6]} 33. cxb6 {[%clk
0:02:05.9]} 33... g5 {[%clk 0:01:13.7]} 34. Kg3 {[%clk 0:01:51.8]} 34... Rxf4
{[%clk 0:01:00.1]} 35. Bg6 {[%clk 0:01:50.6]} 35... Nxg6 {[%clk 0:00:42.8]} 36.
Rxe8 {[%clk 0:01:50.3]} 36... Nh4 {[%clk 0:00:40]} 37. R8e7+ {[%clk 0:01:44.5]}
37... Kd8 {[%clk 0:00:39.6]} 38. Rxb7 {[%clk 0:01:38.9]} 38... Rf3+ {[%clk
0:00:39.7]} 39. Kh2 {[%clk 0:01:39.2]} 39... Rxf2+ {[%clk 0:00:40.3]} 40. Kg1
{[%clk 0:01:38.6]} 40... Rb2 {[%clk 0:00:34.9]} 41. Rf1 {[%clk 0:01:36.5]} 41...
Ke8 {[%clk 0:00:32]} 42. Rf6 {[%clk 0:01:20.3]} 42... Ng2 {[%clk 0:00:20.1]} 43.
Rxh6 {[%clk 0:01:18]} 43... Nf4 {[%clk 0:00:19.5]} 44. Rh8# {[%clk 0:01:17.9]}
1-0

[Event "Early-Titled-Tuesday-Blitz-October-17-2023"]
[Site "Chess.com"]
[Date "2023.10.17"]
[Round "2"]
[White "WindWhistler11"]
[Black "Mandaloriana19"]
[Result "0-1"]
[WhiteElo "2467"]
[BlackElo "2263"]
[TimeControl "180+1"]
[EndTime "8:17:59 PDT"]
[Termination "Mandaloriana19 won on time"]

1. Nf3 {[%clk 0:03:00.9]} 1... c5 {[%clk 0:02:59.7]} 2. g3 {[%clk 0:02:56.2]}
2... Nc6 {[%clk 0:02:59.7]} 3. c4 {[%clk 0:02:54.8]} 3... g6 {[%clk 0:02:59.7]}
4. Bg2 {[%clk 0:02:55.1]} 4... Bg7 {[%clk 0:03:00.3]} 5. a3 {[%clk 0:02:53.5]}
5... Nf6 {[%clk 0:02:57.5]} 6. O-O {[%clk 0:02:42.5]} 6... O-O {[%clk
0:02:57.6]} 7. b4 {[%clk 0:02:40.5]} 7... cxb4 {[%clk 0:02:57.4]} 8. axb4 {[%clk
0:02:41.4]} 8... Nxb4 {[%clk 0:02:57.6]} 9. d4 {[%clk 0:02:41.4]} 9... d6 {[%clk
0:02:56.3]} 10. Ba3 {[%clk 0:02:31.8]} 10... Nc6 {[%clk 0:02:55]} 11. Nc3 {[%clk
0:02:21.3]} 11... Bg4 {[%clk 0:02:53.6]} 12. h3 {[%clk 0:02:16.4]} 12... Bf5
{[%clk 0:02:52.9]} 13. Nh4 {[%clk 0:02:02.9]} 13... Bd7 {[%clk 0:02:52.2]} 14.
Rb1 {[%clk 0:01:52.7]} 14... Rb8 {[%clk 0:02:51.3]} 15. e4 {[%clk 0:01:47.6]}
15... Na5 {[%clk 0:02:50.3]} 16. Qe2 {[%clk 0:01:39.9]} 16... a6 {[%clk
0:02:49.6]} 17. c5 {[%clk 0:01:37.1]} 17... Ne8 {[%clk 0:02:48]} 18. Rfd1 {[%clk
0:01:22.3]} 18... Nc6 {[%clk 0:02:47.2]} 19. Nf3 {[%clk 0:01:20.7]} 19... Qa5
{[%clk 0:02:45.2]} 20. Rb3 {[%clk 0:01:05.9]} 20... Bc8 {[%clk 0:02:20.2]} 21.
e5 {[%clk 0:01:00.2]} 21... dxe5 {[%clk 0:02:12.2]} 22. dxe5 {[%clk 0:00:47.2]}
22... Be6 {[%clk 0:02:11.1]} 23. Nd5 {[%clk 0:00:44]} 23... Rd8 {[%clk
0:02:02.9]} 24. Ng5 {[%clk 0:00:43]} 24... Bxd5 {[%clk 0:01:56.4]} 25. Bxd5
{[%clk 0:00:32.6]} 25... Nxe5 {[%clk 0:01:53.3]} 26. Bb2 {[%clk 0:00:26.2]}
26... e6 {[%clk 0:01:46.6]} 27. Bxe5 {[%clk 0:00:25.2]} 27... Rxd5 {[%clk
0:01:40.9]} 28. Rxd5 {[%clk 0:00:21.9]} 28... exd5 {[%clk 0:01:40.7]} 29. Bd6
{[%clk 0:00:17.8]} 29... Nxd6 {[%clk 0:01:34.5]} 30. cxd6 {[%clk 0:00:18.7]}
30... h6 {[%clk 0:01:34.6]} 31. Nf3 {[%clk 0:00:12.5]} 31... d4 {[%clk
0:01:31.3]} 32. Qe4 {[%clk 0:00:04]} 32... b5 {[%clk 0:01:25.4]} 33. Nxd4 {[%clk
0:00:02.9]} 33... Qa1+ {[%clk 0:01:23.7]} 34. Kg2 {[%clk 0:00:01.4]} 34... Qxd4
{[%clk 0:01:23.1]} 35. Qc6 {[%clk 0:00:01.1]} 35... Rd8 {[%clk 0:01:20.1]} 0-1

[Event "Early-Titled-Tuesday-Blitz-October-17-2023"]
[Site "Chess.com"]
[Date "2023.10.17"]
[Round "2"]
[White "chenrip"]
[Black "jk13"]
[Result "0-1"]
[WhiteElo "2473"]
[BlackElo "2684"]
[TimeControl "180+1"]
[EndTime "8:18:00 PDT"]
[Termination "jk13 won by resignation"]

1. e4 {[%clk 0:03:00.9]} 1... e5 {[%clk 0:02:59.6]} 2. Nf3 {[%clk 0:03:00.5]}
2... Nc6 {[%clk 0:03:00.3]} 3. d4 {[%clk 0:02:59.8]} 3... exd4 {[%clk
0:02:59.6]} 4. Nxd4 {[%clk 0:03:00.3]} 4... Bb4+ {[%clk 0:02:59.7]} 5. c3 {[%clk
0:03:00.3]} 5... Bc5 {[%clk 0:03:00.3]} 6. Be3 {[%clk 0:03:00.6]} 6... Bb6
{[%clk 0:03:00.7]} 7. Bc4 {[%clk 0:03:00.3]} 7... Nf6 {[%clk 0:03:01.1]} 8. Nxc6
{[%clk 0:02:55.6]} 8... bxc6 {[%clk 0:03:00.3]} 9. Bxb6 {[%clk 0:02:53.2]} 9...
axb6 {[%clk 0:03:00.2]} 10. e5 {[%clk 0:02:53.4]} 10... Qe7 {[%clk 0:02:53.5]}
11. Qe2 {[%clk 0:02:53]} 11... Nd5 {[%clk 0:02:53.7]} 12. O-O {[%clk 0:02:50.3]}
12... O-O {[%clk 0:02:53.1]} 13. Nd2 {[%clk 0:02:49.5]} 13... d6 {[%clk
0:02:26.6]} 14. Rae1 {[%clk 0:02:44.4]} 14... Be6 {[%clk 0:02:15.8]} 15. a3
{[%clk 0:02:32.5]} 15... Rae8 {[%clk 0:02:03.3]} 16. Qf3 {[%clk 0:02:29.8]}
16... Qg5 {[%clk 0:01:55.2]} 17. exd6 {[%clk 0:02:24.5]} 17... Qxd2 {[%clk
0:01:50.4]} 18. Re2 {[%clk 0:01:47.8]} 18... Qg5 {[%clk 0:01:47.2]} 19. dxc7
{[%clk 0:01:36.9]} 19... Nxc7 {[%clk 0:01:33.2]} 20. Qxc6 {[%clk 0:01:26.3]}
20... Bd5 {[%clk 0:01:22.2]} 21. Bxd5 {[%clk 0:01:21.8]} 21... Rxe2 {[%clk
0:01:21.8]} 22. Bf3 {[%clk 0:01:11.6]} 22... Re7 {[%clk 0:01:21.1]} 23. g3
{[%clk 0:01:04.3]} 23... Qc5 {[%clk 0:01:18.1]} 24. Qa4 {[%clk 0:01:00.1]} 24...
Rfe8 {[%clk 0:01:16.3]} 25. Kg2 {[%clk 0:00:59.5]} 25... g6 {[%clk 0:01:15.8]}
26. Rd1 {[%clk 0:00:56]} 26... b5 {[%clk 0:01:12.3]} 27. Qh4 {[%clk 0:00:54.3]}
27... Kg7 {[%clk 0:01:10]} 28. b4 {[%clk 0:00:50.6]} 28... Qxc3 {[%clk
0:01:07.5]} 29. Rd4 {[%clk 0:00:43.9]} 29... Ne6 {[%clk 0:01:02.3]} 30. Rd5
{[%clk 0:00:41.7]} 30... Qf6 {[%clk 0:00:56]} 31. Qg4 {[%clk 0:00:38.2]} 31...
h5 {[%clk 0:00:50.1]} 32. Qe4 {[%clk 0:00:28.5]} 32... Ng5 {[%clk 0:00:49.6]}
33. Qd3 {[%clk 0:00:24.9]} 33... Qxf3+ {[%clk 0:00:48.5]} 34. Qxf3 {[%clk
0:00:25.8]} 34... Nxf3 {[%clk 0:00:48.6]} 35. Kxf3 {[%clk 0:00:26.7]} 35... Re5
{[%clk 0:00:48.6]} 0-1

[Event "Early-Titled-Tuesday-Blitz-October-17-2023"]
[Site "Chess.com"]
[Date "2023.10.17"]
[Round "2"]
[White "BlueWizzard"]
[Black "Wizard_97"]
[Result "1-0"]
[WhiteElo "2831"]
[BlackElo "2575"]
[TimeControl "180+1"]
[EndTime "8:18:02 PDT"]
[Termination "BlueWizzard won by resignation"]

1. d4 {[%clk 0:03:00.9]} 1... Nf6 {[%clk 0:02:57.3]} 2. Nc3 {[%clk 0:03:01.4]}
2... d5 {[%clk 0:02:56.6]} 3. Bg5 {[%clk 0:03:01.3]} 3... Ne4 {[%clk 0:02:51.8]}
4. Nxe4 {[%clk 0:02:58.5]} 4... dxe4 {[%clk 0:02:52.7]} 5. Qd2 {[%clk
0:02:55.5]} 5... h6 {[%clk 0:02:48.2]} 6. Bf4 {[%clk 0:02:55.3]} 6... e6 {[%clk
0:02:33.5]} 7. f3 {[%clk 0:02:54.7]} 7... c5 {[%clk 0:02:29.2]} 8. e3 {[%clk
0:02:53.6]} 8... Nc6 {[%clk 0:02:23.4]} 9. O-O-O {[%clk 0:02:51.8]} 9... exf3
{[%clk 0:01:23.2]} 10. gxf3 {[%clk 0:02:42.6]} 10... cxd4 {[%clk 0:01:23.3]} 11.
exd4 {[%clk 0:02:42.7]} 11... Be7 {[%clk 0:01:23.3]} 12. Bb5 {[%clk 0:02:33.5]}
12... Bf6 {[%clk 0:01:22.8]} 13. Ne2 {[%clk 0:02:30.9]} 13... Bd7 {[%clk
0:01:22.2]} 14. d5 {[%clk 0:02:24.7]} 14... exd5 {[%clk 0:00:45.7]} 15. Qxd5
{[%clk 0:02:25.6]} 15... a6 {[%clk 0:00:45]} 16. Ba4 {[%clk 0:01:59.3]} 16... b5
{[%clk 0:00:41.1]} 17. Bb3 {[%clk 0:01:59.2]} 17... Qe7 {[%clk 0:00:30.5]} 18.
Ng3 {[%clk 0:01:37.8]} 18... Rc8 {[%clk 0:00:26.3]} 19. Bd6 {[%clk 0:01:35]}
19... Qe3+ {[%clk 0:00:19.9]} 20. Kb1 {[%clk 0:01:31.4]} 20... Be6 {[%clk
0:00:20]} 21. Qh5 {[%clk 0:01:04.9]} 21... Nd4 {[%clk 0:00:11.8]} 22. Bxe6
{[%clk 0:00:59.3]} 22... Nxe6 {[%clk 0:00:08.7]} 23. Rhe1 {[%clk 0:00:58.8]}
23... Qf2 {[%clk 0:00:05]} 24. Rxe6+ {[%clk 0:00:56.6]} 24... Kd8 {[%clk
0:00:05.3]} 25. Bc5+ {[%clk 0:00:52.6]} 1-0

[Event "Early-Titled-Tuesday-Blitz-October-17-2023"]
[Site "Chess.com"]
[Date "2023.10.17"]
[Round "2"]
[White "AndresDelgado77"]
[Black "HajiyevKanan"]
[Result "0-1"]
[WhiteElo "2325"]
[BlackElo "2531"]
[TimeControl "180+1"]
[EndTime "8:18:07 PDT"]
[Termination "HajiyevKanan won on time"]

1. e4 {[%clk 0:03:00]} 1... c6 {[%clk 0:03:00.9]} 2. d4 {[%clk 0:02:58.2]} 2...
d5 {[%clk 0:03:01.8]} 3. Nc3 {[%clk 0:02:55.2]} 3... a6 {[%clk 0:03:02.2]} 4.
Bf4 {[%clk 0:02:38.3]} 4... Qa5 {[%clk 0:02:56.1]} 5. Qf3 {[%clk 0:02:26]} 5...
Nf6 {[%clk 0:02:54.7]} 6. e5 {[%clk 0:02:06.3]} 6... Ne4 {[%clk 0:02:54.5]} 7.
Ne2 {[%clk 0:02:02.5]} 7... Bf5 {[%clk 0:02:48.8]} 8. a3 {[%clk 0:01:55.2]} 8...
e6 {[%clk 0:02:48.7]} 9. Bd2 {[%clk 0:01:37.3]} 9... Nxd2 {[%clk 0:02:33.7]} 10.
Kxd2 {[%clk 0:01:36.7]} 10... c5 {[%clk 0:02:32.7]} 11. dxc5 {[%clk 0:01:30.9]}
11... Bxc5 {[%clk 0:02:31.3]} 12. b4 {[%clk 0:01:09.9]} 12... Bxb4 {[%clk
0:02:29.6]} 13. axb4 {[%clk 0:01:10.2]} 13... Qxa1 {[%clk 0:02:30.5]} 14. Nd4
{[%clk 0:01:07.1]} 14... O-O {[%clk 0:02:15.5]} 15. Nxf5 {[%clk 0:00:53.2]}
15... exf5 {[%clk 0:02:16.4]} 16. Qxf5 {[%clk 0:00:48.3]} 16... g6 {[%clk
0:02:10.5]} 17. Qf6 {[%clk 0:00:35]} 17... Nc6 {[%clk 0:01:58.8]} 18. Nxd5
{[%clk 0:00:21.1]} 18... Qxe5 {[%clk 0:01:51]} 19. Qxe5 {[%clk 0:00:15]} 19...
Nxe5 {[%clk 0:01:51.9]} 20. c4 {[%clk 0:00:12.4]} 20... Rfd8 {[%clk 0:01:50.8]}
21. Kc3 {[%clk 0:00:11.8]} 21... b5 {[%clk 0:01:50.7]} 22. Nb6 {[%clk
0:00:08.1]} 22... Rab8 {[%clk 0:01:24.2]} 23. c5 {[%clk 0:00:08]} 23... Rd1
{[%clk 0:01:22.8]} 24. g3 {[%clk 0:00:07.6]} 24... Rc1+ {[%clk 0:01:01]} 25. Kb2
{[%clk 0:00:05.5]} 25... Nd3+ {[%clk 0:00:51.5]} 0-1

[Event "Early-Titled-Tuesday-Blitz-October-17-2023"]
[Site "Chess.com"]
[Date "2023.10.17"]
[Round "2"]
[White "mishanick"]
[Black "RandomNoob04"]
[Result "1-0"]
[WhiteElo "3015"]
[BlackElo "2619"]
[TimeControl "180+1"]
[EndTime "8:18:12 PDT"]
[Termination "mishanick won by resignation"]

1. d4 {[%clk 0:03:00.9]} 1... Nf6 {[%clk 0:02:59.8]} 2. c4 {[%clk 0:02:59.1]}
2... c5 {[%clk 0:02:59.8]} 3. d5 {[%clk 0:02:57.6]} 3... b5 {[%clk 0:03:00]} 4.
cxb5 {[%clk 0:02:55.9]} 4... a6 {[%clk 0:03:00.1]} 5. e3 {[%clk 0:02:56.3]} 5...
axb5 {[%clk 0:02:57.8]} 6. Bxb5 {[%clk 0:02:56.4]} 6... Qa5+ {[%clk 0:02:58.5]}
7. Nc3 {[%clk 0:02:56.8]} 7... Bb7 {[%clk 0:02:59.4]} 8. Bc4 {[%clk 0:02:54.9]}
8... e6 {[%clk 0:02:59.4]} 9. Bd2 {[%clk 0:02:52.6]} 9... Qb6 {[%clk 0:02:57.5]}
10. e4 {[%clk 0:02:48.5]} 10... Nxe4 {[%clk 0:02:52.6]} 11. Nge2 {[%clk
0:02:26.9]} 11... Nf6 {[%clk 0:02:50.7]} 12. Bg5 {[%clk 0:02:10.2]} 12... Qb4
{[%clk 0:02:36.8]} 13. Qd3 {[%clk 0:01:34.2]} 13... Nxd5 {[%clk 0:02:31.6]} 14.
O-O {[%clk 0:01:33.2]} 14... Nb6 {[%clk 0:02:10.8]} 15. b3 {[%clk 0:01:33.1]}
15... Nc6 {[%clk 0:02:04.4]} 16. a3 {[%clk 0:01:18.3]} 16... Qa5 {[%clk
0:02:00.4]} 17. Qg3 {[%clk 0:01:18.9]} 17... Nxc4 {[%clk 0:01:34.5]} 18. bxc4
{[%clk 0:01:18.7]} 18... Nd4 {[%clk 0:01:35.4]} 19. Nxd4 {[%clk 0:01:15.7]}
19... cxd4 {[%clk 0:01:36.3]} 20. Nb5 {[%clk 0:01:16.3]} 20... Rc8 {[%clk
0:01:29.1]} 21. Rad1 {[%clk 0:01:04.5]} 21... Bc5 {[%clk 0:01:24.3]} 22. Bd2
{[%clk 0:00:53.2]} 22... Qa4 {[%clk 0:01:01.6]} 23. Qxg7 {[%clk 0:00:42.6]}
23... Rf8 {[%clk 0:01:02]} 24. Bb4 {[%clk 0:00:37.3]} 24... Bxb4 {[%clk
0:00:51.9]} 25. axb4 {[%clk 0:00:38.2]} 25... Qxb4 {[%clk 0:00:52.2]} 26. Qxd4
{[%clk 0:00:37.6]} 26... d5 {[%clk 0:00:47.1]} 27. Qb6 {[%clk 0:00:34.5]} 27...
Bc6 {[%clk 0:00:20.7]} 28. Nc7+ {[%clk 0:00:34.2]} 1-0

[Event "Early-Titled-Tuesday-Blitz-October-17-2023"]
[Site "Chess.com"]
[Date "2023.10.17"]
[Round "2"]
[White "Logman74"]
[Black "Alenzer"]
[Result "1-0"]
[WhiteElo "2433"]
[BlackElo "2112"]
[TimeControl "180+1"]
[EndTime "8:18:13 PDT"]
[Termination "Logman74 won on time"]

1. e4 {[%clk 0:02:54.3]} 1... c5 {[%clk 0:02:42.6]} 2. Nf3 {[%clk 0:02:53.5]}
2... e6 {[%clk 0:02:42.2]} 3. d4 {[%clk 0:02:53.6]} 3... cxd4 {[%clk 0:02:41.6]}
4. Nxd4 {[%clk 0:02:53.1]} 4... Nf6 {[%clk 0:02:40.6]} 5. Bd3 {[%clk 0:02:50.6]}
5... Nc6 {[%clk 0:02:40.4]} 6. Nxc6 {[%clk 0:02:49.9]} 6... dxc6 {[%clk
0:02:38.3]} 7. O-O {[%clk 0:02:49.8]} 7... e5 {[%clk 0:02:37.7]} 8. Nc3 {[%clk
0:02:41.3]} 8... Be7 {[%clk 0:02:34]} 9. h3 {[%clk 0:02:40.1]} 9... O-O {[%clk
0:02:29.7]} 10. Be3 {[%clk 0:02:39.8]} 10... Be6 {[%clk 0:02:26.7]} 11. a3
{[%clk 0:02:38.6]} 11... Qc7 {[%clk 0:02:23.8]} 12. Qf3 {[%clk 0:02:39]} 12...
Rad8 {[%clk 0:02:10.1]} 13. Rae1 {[%clk 0:02:27.2]} 13... b5 {[%clk 0:02:01]}
14. Ne2 {[%clk 0:02:11.2]} 14... Rfe8 {[%clk 0:01:51.7]} 15. Ng3 {[%clk
0:02:07.7]} 15... a6 {[%clk 0:01:32.2]} 16. Nf5 {[%clk 0:02:05.8]} 16... Bf8
{[%clk 0:01:32.2]} 17. Bg5 {[%clk 0:01:59.5]} 17... Bxf5 {[%clk 0:01:20.2]} 18.
Bxf6 {[%clk 0:01:57]} 18... Bg6 {[%clk 0:01:16.6]} 19. Bxd8 {[%clk 0:01:56.1]}
19... Rxd8 {[%clk 0:01:15.7]} 20. Rd1 {[%clk 0:01:55.4]} 20... c5 {[%clk
0:01:15.5]} 21. Qe3 {[%clk 0:01:48.3]} 21... c4 {[%clk 0:01:13.9]} 22. Be2
{[%clk 0:01:47.6]} 22... Re8 {[%clk 0:01:08.4]} 23. Bg4 {[%clk 0:01:44.1]} 23...
Bc5 {[%clk 0:01:04.8]} 24. Qf3 {[%clk 0:01:38.6]} 24... f6 {[%clk 0:00:51.9]}
25. Rd7 {[%clk 0:01:33.9]} 25... Qc6 {[%clk 0:00:52.3]} 26. Rfd1 {[%clk
0:01:32.9]} 26... Bxe4 {[%clk 0:00:50.3]} 27. Qg3 {[%clk 0:01:25.4]} 27... Bg6
{[%clk 0:00:45]} 28. Bf5 {[%clk 0:01:18.7]} 28... Re7 {[%clk 0:00:28.9]} 29.
Rxe7 {[%clk 0:01:12.1]} 29... Bxe7 {[%clk 0:00:26.1]} 30. Bxg6 {[%clk
0:01:12.1]} 30... hxg6 {[%clk 0:00:24]} 31. Qxg6 {[%clk 0:01:12.5]} 31... Bf8
{[%clk 0:00:08.4]} 32. Qf5 {[%clk 0:01:10.2]} 1-0